[Event "Titled Tuesday Blitz May 17 Late 2022"]
[White "Korchmar, Vasiliy"]
[Black "Sanal, Vahap"]
[WhiteFideId "24131750"]
[BlackFideId "6300545"]
[WhiteElo "2370"]
[BlackElo "2574"]
[Result "1-0"]
[Round "05"]
[TimeControl "180+1"]
[Date "2022.05.17"]
[WhiteClock "0:00:21"]
[BlackClock "0:00:25"]

1. e4 {[%clk 0:03:00]}  c5 {[%clk 0:02:59]} 2. Nf3 {[%clk 0:03:01]}  d6 {[%clk 0:02:59]} 3. d4 {[%clk 0:03:01]}  cxd4 {[%clk 0:03:00]} 4. Nxd4 {[%clk 0:03:02]}  Nf6 {[%clk 0:03:00]} 5. Nc3 {[%clk 0:03:03]}  a6 {[%clk 0:03:00]} 6. f3 {[%clk 0:03:03]}  e6 {[%clk 0:02:59]} 7. Be3 {[%clk 0:03:01]}  b5 {[%clk 0:02:58]} 8. a3 {[%clk 0:03:01]}  Be7 {[%clk 0:02:57]} 9. g4 {[%clk 0:03:00]}  Qc7 {[%clk 0:02:56]} 10. g5 {[%clk 0:02:50]}  Nfd7 {[%clk 0:02:55]} 11. h4 {[%clk 0:02:49]}  Ne5 {[%clk 0:02:55]} 12. Rg1 {[%clk 0:02:40]}  Nc4 {[%clk 0:02:50]} 13. Bxc4 {[%clk 0:02:38]}  Qxc4 {[%clk 0:02:51]} 14. h5 {[%clk 0:02:32]}  g6 {[%clk 0:02:42]} 15. Qd2 {[%clk 0:02:28]}  Nd7 {[%clk 0:02:33]} 16. O-O-O {[%clk 0:02:20]}  Rb8 {[%clk 0:02:32]} 17. f4 {[%clk 0:02:07]}  b4 {[%clk 0:02:11]} 18. axb4 {[%clk 0:02:08]}  Qxb4 {[%clk 0:02:11]} 19. Nb3 {[%clk 0:02:08]}  a5 {[%clk 0:02:12]} 20. Qd4 {[%clk 0:01:51]}  Rg8 {[%clk 0:02:12]} 21. hxg6 {[%clk 0:01:48]}  hxg6 {[%clk 0:02:11]} 22. Rh1 {[%clk 0:01:34]}  Bb7 {[%clk 0:01:51]} 23. Rh8 {[%clk 0:01:27]}  Rxh8 {[%clk 0:01:48]} 24. Qxh8+ {[%clk 0:01:27]}  Nf8 {[%clk 0:01:48]} 25. Ba7 {[%clk 0:01:11]}  Ra8 {[%clk 0:01:43]} 26. Rd4 {[%clk 0:01:11]}  Rxa7 {[%clk 0:01:34]} 27. Rxb4 {[%clk 0:01:11]}  axb4 {[%clk 0:01:35]} 28. Nb5 {[%clk 0:01:12]}  Ra4 {[%clk 0:01:28]} 29. Qd4 {[%clk 0:01:01]}  e5 {[%clk 0:01:14]} 30. fxe5 {[%clk 0:00:44]}  Ne6 {[%clk 0:01:06]} 31. Nxd6+ {[%clk 0:00:44]}  Kf8 {[%clk 0:01:04]} 32. Qb6 {[%clk 0:00:41]}  Ba6 {[%clk 0:00:45]} 33. Qb8+ {[%clk 0:00:34]}  Nd8 {[%clk 0:00:39]} 34. Kb1 {[%clk 0:00:29]}  Bf1 {[%clk 0:00:26]} 35. Nc5 {[%clk 0:00:26]}  Ra5 {[%clk 0:00:26]} 36. Ncb7 {[%clk 0:00:24]}  Rxe5 {[%clk 0:00:25]} 37. Nxd8 {[%clk 0:00:21]} 1-0


[Site "https://www.chess.com"]

[Event "Titled Tuesday Blitz May 17 Late 2022"]
[White "Makarian, Rudik"]
[Black "Svane, Rasmus"]
[WhiteFideId "44105681"]
[BlackFideId "4657101"]
[WhiteElo "2419"]
[BlackElo "2674"]
[Result "1-0"]
[Round "05"]
[TimeControl "180+1"]
[Date "2022.05.17"]
[WhiteClock "0:00:03"]
[BlackClock "0:00:01"]

1. d3 {[%clk 0:03:00]}  d5 {[%clk 0:02:57]} 2. f4 {[%clk 0:03:01]}  Nf6 {[%clk 0:02:45]} 3. Nf3 {[%clk 0:03:00]}  g6 {[%clk 0:02:44]} 4. g3 {[%clk 0:03:01]}  Bg7 {[%clk 0:02:45]} 5. Bg2 {[%clk 0:03:01]}  O-O {[%clk 0:02:46]} 6. O-O {[%clk 0:03:02]}  c5 {[%clk 0:02:46]} 7. Ne5 {[%clk 0:03:02]}  Nc6 {[%clk 0:02:34]} 8. Nxc6 {[%clk 0:03:02]}  bxc6 {[%clk 0:02:35]} 9. c4 {[%clk 0:03:01]}  Rb8 {[%clk 0:02:29]} 10. Nc3 {[%clk 0:02:59]}  dxc4 {[%clk 0:02:18]} 11. dxc4 {[%clk 0:02:57]}  Qd4+ {[%clk 0:02:18]} 12. Qxd4 {[%clk 0:02:51]}  cxd4 {[%clk 0:02:19]} 13. Na4 {[%clk 0:02:51]}  Be6 {[%clk 0:02:12]} 14. b3 {[%clk 0:02:45]}  Ng4 {[%clk 0:02:03]} 15. Rb1 {[%clk 0:02:16]}  Bf5 {[%clk 0:01:53]} 16. Ba3 {[%clk 0:02:07]}  Bxb1 {[%clk 0:01:17]} 17. Rxb1 {[%clk 0:02:08]}  d3 {[%clk 0:01:15]} 18. Bc5 {[%clk 0:01:44]}  Rfd8 {[%clk 0:00:57]} 19. Bf3 {[%clk 0:01:40]}  h5 {[%clk 0:00:45]} 20. h3 {[%clk 0:01:31]}  Nh6 {[%clk 0:00:41]} 21. e4 {[%clk 0:01:29]}  Bd4+ {[%clk 0:00:39]} 22. Kf1 {[%clk 0:01:21]}  e5 {[%clk 0:00:33]} 23. Rd1 {[%clk 0:01:15]}  h4 {[%clk 0:00:30]} 24. Be7 {[%clk 0:01:02]}  hxg3 {[%clk 0:00:20]} 25. Bxd8 {[%clk 0:00:48]}  Rxd8 {[%clk 0:00:21]} 26. fxe5 {[%clk 0:00:45]}  Bxe5 {[%clk 0:00:22]} 27. Nc5 {[%clk 0:00:45]}  d2 {[%clk 0:00:19]} 28. Ke2 {[%clk 0:00:45]}  Bf4 {[%clk 0:00:15]} 29. Nd3 {[%clk 0:00:42]}  g5 {[%clk 0:00:12]} 30. Nxf4 {[%clk 0:00:38]}  gxf4 {[%clk 0:00:13]} 31. Rxd2 {[%clk 0:00:39]}  Rxd2+ {[%clk 0:00:14]} 32. Kxd2 {[%clk 0:00:40]}  f6 {[%clk 0:00:11]} 33. b4 {[%clk 0:00:38]}  Nf7 {[%clk 0:00:11]} 34. b5 {[%clk 0:00:21]}  c5 {[%clk 0:00:06]} 35. e5 {[%clk 0:00:04]}  Nxe5 {[%clk 0:00:07]} 36. Bd5+ {[%clk 0:00:05]}  Kg7 {[%clk 0:00:07]} 37. Ke2 {[%clk 0:00:05]}  Kh6 {[%clk 0:00:04]} 38. a4 {[%clk 0:00:05]}  Kg5 {[%clk 0:00:05]} 39. a5 {[%clk 0:00:06]}  Kh4 {[%clk 0:00:05]} 40. b6 {[%clk 0:00:05]}  axb6 {[%clk 0:00:05]} 41. a6 {[%clk 0:00:05]}  Kxh3 {[%clk 0:00:02]} 42. a7 {[%clk 0:00:05]}  g2 {[%clk 0:00:03]} 43. Bxg2+ {[%clk 0:00:05]}  Kxg2 {[%clk 0:00:03]} 44. a8=Q+ {[%clk 0:00:06]}  f3+ {[%clk 0:00:04]} 45. Ke1 {[%clk 0:00:01]}  Kg1 {[%clk 0:00:02]} 46. Qg8+ {[%clk 0:00:02]}  Kh2 {[%clk 0:00:02]} 47. Qg7 {[%clk 0:00:02]}  Kh3 {[%clk 0:00:01]} 48. Kf2 {[%clk 0:00:03]} 1-0


[Site "https://www.chess.com"]

[Event "Titled Tuesday Blitz May 17 Late 2022"]
[White "Martinez Reyes, Pedro Ramon"]
[Black "Svane, Frederik"]
[WhiteFideId "3901807"]
[BlackFideId "12923044"]
[WhiteElo "2410"]
[BlackElo "2459"]
[Result "1/2-1/2"]
[Round "05"]
[TimeControl "180+1"]
[Date "2022.05.17"]
[WhiteClock "0:00:27"]
[BlackClock "0:00:43"]

1. Nf3 {[%clk 0:03:00]}  c5 {[%clk 0:02:55]} 2. b3 {[%clk 0:03:01]}  Nf6 {[%clk 0:02:51]} 3. Bb2 {[%clk 0:03:01]}  g6 {[%clk 0:02:51]} 4. g3 {[%clk 0:02:59]}  Bg7 {[%clk 0:02:51]} 5. Bg2 {[%clk 0:03:00]}  O-O {[%clk 0:02:52]} 6. O-O {[%clk 0:03:00]}  b6 {[%clk 0:02:51]} 7. d4 {[%clk 0:02:52]}  Bb7 {[%clk 0:02:50]} 8. c4 {[%clk 0:02:51]}  cxd4 {[%clk 0:02:49]} 9. Nxd4 {[%clk 0:02:50]}  Bxg2 {[%clk 0:02:49]} 10. Kxg2 {[%clk 0:02:51]}  Nc6 {[%clk 0:02:49]} 11. Nxc6 {[%clk 0:02:38]}  dxc6 {[%clk 0:02:49]} 12. Qc2 {[%clk 0:02:38]}  h5 {[%clk 0:02:44]} 13. Nd2 {[%clk 0:02:35]}  h4 {[%clk 0:02:42]} 14. Nf3 {[%clk 0:02:35]}  hxg3 {[%clk 0:02:33]} 15. hxg3 {[%clk 0:02:36]}  Qd7 {[%clk 0:02:32]} 16. Rad1 {[%clk 0:02:32]}  Qf5 {[%clk 0:02:31]} 17. Qxf5 {[%clk 0:02:31]}  gxf5 {[%clk 0:02:32]} 18. Bxf6 {[%clk 0:02:21]}  Bxf6 {[%clk 0:02:32]} 19. Nd4 {[%clk 0:02:22]}  Bxd4 {[%clk 0:02:03]} 20. Rxd4 {[%clk 0:02:22]}  e6 {[%clk 0:02:03]} 21. Rfd1 {[%clk 0:02:18]}  a5 {[%clk 0:02:01]} 22. Rd7 {[%clk 0:02:11]}  c5 {[%clk 0:01:52]} 23. Kf3 {[%clk 0:02:02]}  Kg7 {[%clk 0:01:46]} 24. R1d6 {[%clk 0:02:01]}  Kf6 {[%clk 0:01:42]} 25. Rxb6 {[%clk 0:02:01]}  a4 {[%clk 0:01:42]} 26. Rc7 {[%clk 0:01:55]}  axb3 {[%clk 0:01:37]} 27. axb3 {[%clk 0:01:56]}  Rfc8 {[%clk 0:01:34]} 28. Rxc8 {[%clk 0:01:48]}  Rxc8 {[%clk 0:01:35]} 29. e4 {[%clk 0:01:48]}  Rd8 {[%clk 0:01:32]} 30. exf5 {[%clk 0:01:45]}  Kxf5 {[%clk 0:01:24]} 31. Rb5 {[%clk 0:01:37]}  Rd3+ {[%clk 0:00:50]} 32. Ke2 {[%clk 0:01:36]}  Ke4 {[%clk 0:00:49]} 33. g4 {[%clk 0:00:56]}  Rc3 {[%clk 0:00:45]} 34. Kd2 {[%clk 0:00:55]}  Rf3 {[%clk 0:00:45]} 35. Ke2 {[%clk 0:00:55]}  Rc3 {[%clk 0:00:45]} 36. Kd2 {[%clk 0:00:46]}  Rf3 {[%clk 0:00:44]} 37. Ke2 {[%clk 0:00:27]}  Rc3 {[%clk 0:00:43]} 1/2-1/2


[Site "https://www.chess.com"]

[Event "Titled Tuesday Blitz May 17 Late 2022"]
[White "Mortazavi, Ali"]
[Black "Santos Ruiz, Miguel"]
[WhiteFideId "401323"]
[BlackFideId "22291482"]
[WhiteElo "2339"]
[BlackElo "2486"]
[Result "0-1"]
[Round "05"]
[TimeControl "180+1"]
[Date "2022.05.17"]
[WhiteClock "0:00:07"]
[BlackClock "0:00:27"]

1. Nf3 {[%clk 0:02:58]}  d5 {[%clk 0:02:59]} 2. g3 {[%clk 0:02:57]}  Nd7 {[%clk 0:02:59]} 3. Bg2 {[%clk 0:02:57]}  e5 {[%clk 0:02:59]} 4. d3 {[%clk 0:02:58]}  Ngf6 {[%clk 0:02:58]} 5. O-O {[%clk 0:02:59]}  c6 {[%clk 0:02:57]} 6. Nc3 {[%clk 0:03:00]}  Bc5 {[%clk 0:02:53]} 7. Nxe5 {[%clk 0:02:57]}  Nxe5 {[%clk 0:02:51]} 8. d4 {[%clk 0:02:57]}  Bd6 {[%clk 0:02:51]} 9. dxe5 {[%clk 0:02:57]}  Bxe5 {[%clk 0:02:52]} 10. Na4 {[%clk 0:02:39]}  O-O {[%clk 0:02:40]} 11. Nc5 {[%clk 0:02:39]}  Re8 {[%clk 0:02:37]} 12. Nd3 {[%clk 0:02:37]}  Bd6 {[%clk 0:02:35]} 13. b3 {[%clk 0:02:37]}  Bg4 {[%clk 0:02:32]} 14. f3 {[%clk 0:02:31]}  Bf5 {[%clk 0:02:30]} 15. Bb2 {[%clk 0:02:30]}  h6 {[%clk 0:02:29]} 16. Kh1 {[%clk 0:02:20]}  Qe7 {[%clk 0:02:21]} 17. Re1 {[%clk 0:02:15]}  Ba3 {[%clk 0:02:19]} 18. Bxa3 {[%clk 0:02:13]}  Qxa3 {[%clk 0:02:19]} 19. Qd2 {[%clk 0:02:05]}  Re7 {[%clk 0:02:15]} 20. e3 {[%clk 0:01:44]}  Rae8 {[%clk 0:02:13]} 21. g4 {[%clk 0:01:40]}  Bh7 {[%clk 0:02:10]} 22. h4 {[%clk 0:01:39]}  Qd6 {[%clk 0:02:08]} 23. Qf2 {[%clk 0:01:37]}  Nd7 {[%clk 0:01:55]} 24. Rad1 {[%clk 0:01:31]}  Nc5 {[%clk 0:01:52]} 25. Nf4 {[%clk 0:01:28]}  Qf6 {[%clk 0:01:40]} 26. Rd2 {[%clk 0:01:11]}  Qc3 {[%clk 0:01:24]} 27. Rde2 {[%clk 0:01:11]}  a5 {[%clk 0:01:21]} 28. g5 {[%clk 0:01:06]}  hxg5 {[%clk 0:01:04]} 29. hxg5 {[%clk 0:01:07]}  Re5 {[%clk 0:01:00]} 30. Nh3 {[%clk 0:00:47]}  Bf5 {[%clk 0:00:54]} 31. f4 {[%clk 0:00:46]}  R5e7 {[%clk 0:00:51]} 32. Ng1 {[%clk 0:00:46]}  g6 {[%clk 0:00:43]} 33. Nf3 {[%clk 0:00:34]}  Kg7 {[%clk 0:00:43]} 34. Ne5 {[%clk 0:00:32]}  Rh8+ {[%clk 0:00:40]} 35. Kg1 {[%clk 0:00:33]}  Ne4 {[%clk 0:00:39]} 36. Qf3 {[%clk 0:00:23]}  Rh4 {[%clk 0:00:36]} 37. Bf1 {[%clk 0:00:19]}  Re8 {[%clk 0:00:34]} 38. Rd1 {[%clk 0:00:10]}  Reh8 {[%clk 0:00:28]} 39. Bg2 {[%clk 0:00:10]}  Nxg5 {[%clk 0:00:27]} 40. Qf2 {[%clk 0:00:07]}  Nh3+ {[%clk 0:00:27]} 41. Bxh3 {[%clk 0:00:07]}  Rxh3 {[%clk 0:00:27]} 0-1


[Site "https://www.chess.com"]

[Event "Titled Tuesday Blitz May 17 Late 2022"]
[White "Moskalenko, Alexander"]
[Black "Pichot, Alan"]
[WhiteFideId "4155351"]
[BlackFideId "110973"]
[WhiteElo "2434"]
[BlackElo "2579"]
[Result "0-1"]
[Round "05"]
[TimeControl "180+1"]
[Date "2022.05.17"]
[WhiteClock "0:00:01"]
[BlackClock "0:00:25"]

1. Nf3 {[%clk 0:02:59]}  Nf6 {[%clk 0:02:59]} 2. c4 {[%clk 0:02:59]}  e6 {[%clk 0:02:57]} 3. Nc3 {[%clk 0:02:58]}  d5 {[%clk 0:02:57]} 4. d4 {[%clk 0:02:58]}  dxc4 {[%clk 0:02:56]} 5. e4 {[%clk 0:02:55]}  b5 {[%clk 0:02:56]} 6. e5 {[%clk 0:02:52]}  Nfd7 {[%clk 0:02:57]} 7. Nxb5 {[%clk 0:02:51]}  Nb6 {[%clk 0:02:57]} 8. Be2 {[%clk 0:02:49]}  Nc6 {[%clk 0:02:58]} 9. O-O {[%clk 0:02:49]}  Be7 {[%clk 0:02:59]} 10. Qd2 {[%clk 0:02:48]}  Bb7 {[%clk 0:02:58]} 11. Qf4 {[%clk 0:02:46]}  Qd7 {[%clk 0:02:59]} 12. Nc3 {[%clk 0:02:42]}  f5 {[%clk 0:02:47]} 13. exf6 {[%clk 0:02:39]}  gxf6 {[%clk 0:02:47]} 14. b3 {[%clk 0:02:35]}  O-O {[%clk 0:02:34]} 15. bxc4 {[%clk 0:02:32]}  Rad8 {[%clk 0:02:20]} 16. Be3 {[%clk 0:02:14]}  Na5 {[%clk 0:02:09]} 17. Rab1 {[%clk 0:01:39]}  Ba6 {[%clk 0:02:05]} 18. c5 {[%clk 0:01:29]}  Bxe2 {[%clk 0:02:04]} 19. Nxe2 {[%clk 0:01:30]}  Nd5 {[%clk 0:02:05]} 20. Qh6 {[%clk 0:01:30]}  Nc4 {[%clk 0:01:56]} 21. Ng3 {[%clk 0:01:29]}  Kh8 {[%clk 0:01:53]} 22. Rfe1 {[%clk 0:01:24]}  Rg8 {[%clk 0:01:53]} 23. Bc1 {[%clk 0:01:12]}  Rg6 {[%clk 0:01:52]} 24. Qh3 {[%clk 0:01:10]}  Rdg8 {[%clk 0:01:53]} 25. Qxe6 {[%clk 0:01:10]}  Qxe6 {[%clk 0:01:47]} 26. Rxe6 {[%clk 0:01:11]}  f5 {[%clk 0:01:48]} 27. Rxg6 {[%clk 0:01:08]}  hxg6 {[%clk 0:01:49]} 28. Ne2 {[%clk 0:01:04]}  Bf6 {[%clk 0:01:49]} 29. Nf4 {[%clk 0:01:04]}  Nc3 {[%clk 0:01:45]} 30. Rb7 {[%clk 0:01:02]}  g5 {[%clk 0:01:42]} 31. Nh5 {[%clk 0:01:00]}  Bd8 {[%clk 0:01:36]} 32. Bb2 {[%clk 0:00:55]}  Nd5 {[%clk 0:01:34]} 33. Ne5 {[%clk 0:00:52]}  Re8 {[%clk 0:01:33]} 34. f4 {[%clk 0:00:47]}  Nxb2 {[%clk 0:01:30]} 35. Rxb2 {[%clk 0:00:48]}  gxf4 {[%clk 0:01:31]} 36. Kf2 {[%clk 0:00:44]}  Kh7 {[%clk 0:01:28]} 37. Kf3 {[%clk 0:00:44]}  Bg5 {[%clk 0:01:29]} 38. Rb7 {[%clk 0:00:38]}  Kh6 {[%clk 0:01:29]} 39. h4 {[%clk 0:00:34]}  Kxh5 {[%clk 0:01:15]} 40. hxg5 {[%clk 0:00:34]}  Kxg5 {[%clk 0:01:16]} 41. c6 {[%clk 0:00:34]}  Kf6 {[%clk 0:01:10]} 42. Rxa7 {[%clk 0:00:32]}  Rg8 {[%clk 0:01:10]} 43. Kf2 {[%clk 0:00:20]}  Rg3 {[%clk 0:01:06]} 44. Nf3 {[%clk 0:00:20]}  Ke6 {[%clk 0:01:00]} 45. a4 {[%clk 0:00:19]}  Kd6 {[%clk 0:01:01]} 46. Ra8 {[%clk 0:00:17]}  Ne3 {[%clk 0:01:01]} 47. Ne1 {[%clk 0:00:16]}  Ng4+ {[%clk 0:01:00]} 48. Kf1 {[%clk 0:00:16]}  Ra3 {[%clk 0:00:59]} 49. Nf3 {[%clk 0:00:13]}  Ra1+ {[%clk 0:00:56]} 50. Ke2 {[%clk 0:00:14]}  Ra2+ {[%clk 0:00:57]} 51. Kd3 {[%clk 0:00:14]}  Rxg2 {[%clk 0:00:53]} 52. Ne5 {[%clk 0:00:15]}  Nxe5+ {[%clk 0:00:47]} 53. dxe5+ {[%clk 0:00:16]}  Kxe5 {[%clk 0:00:48]} 54. Re8+ {[%clk 0:00:15]}  Kd5 {[%clk 0:00:46]} 55. Rf8 {[%clk 0:00:14]}  Rg3+ {[%clk 0:00:40]} 56. Kc2 {[%clk 0:00:10]}  Ke4 {[%clk 0:00:37]} 57. Re8+ {[%clk 0:00:09]}  Kd4 {[%clk 0:00:34]} 58. Rd8+ {[%clk 0:00:09]}  Ke3 {[%clk 0:00:32]} 59. a5 {[%clk 0:00:06]}  f3 {[%clk 0:00:28]} 60. a6 {[%clk 0:00:05]}  f2 {[%clk 0:00:29]} 61. Rd3+ {[%clk 0:00:05]}  Kf4 {[%clk 0:00:29]} 62. Rxg3 {[%clk 0:00:06]}  f1=Q {[%clk 0:00:28]} 63. a7 {[%clk 0:00:07]}  Qf2+ {[%clk 0:00:27]} 64. Kd1 {[%clk 0:00:01]}  Qxa7 {[%clk 0:00:26]} 65. Ra3 {[%clk 0:00:01]}  Qxa3 {[%clk 0:00:25]} 0-1


[Site "https://www.chess.com"]

[Event "Titled Tuesday Blitz May 17 Late 2022"]
[White "Nazari, Arad"]
[Black "Steinberg, Nitzan"]
[WhiteFideId "12577324"]
[BlackFideId "2801795"]
[WhiteElo "2129"]
[BlackElo "2471"]
[Result "0-1"]
[Round "05"]
[TimeControl "180+1"]
[Date "2022.05.17"]
[WhiteClock "0:00:12"]
[BlackClock "0:00:03"]

1. e4 {[%clk 0:03:00]}  c5 {[%clk 0:03:00]} 2. Nf3 {[%clk 0:03:00]}  e6 {[%clk 0:03:00]} 3. d4 {[%clk 0:02:59]}  cxd4 {[%clk 0:03:01]} 4. c3 {[%clk 0:03:00]}  d3 {[%clk 0:03:00]} 5. Bxd3 {[%clk 0:03:00]}  Nc6 {[%clk 0:03:01]} 6. O-O {[%clk 0:02:58]}  Nf6 {[%clk 0:03:00]} 7. c4 {[%clk 0:02:49]}  Bc5 {[%clk 0:02:54]} 8. Nc3 {[%clk 0:02:47]}  d6 {[%clk 0:02:52]} 9. a3 {[%clk 0:02:47]}  a6 {[%clk 0:02:50]} 10. b4 {[%clk 0:02:46]}  Ba7 {[%clk 0:02:50]} 11. Qe2 {[%clk 0:02:36]}  O-O {[%clk 0:02:47]} 12. Be3 {[%clk 0:02:36]}  Bxe3 {[%clk 0:02:38]} 13. Qxe3 {[%clk 0:02:37]}  Ng4 {[%clk 0:02:30]} 14. Qe2 {[%clk 0:02:36]}  Qf6 {[%clk 0:02:24]} 15. Rac1 {[%clk 0:02:29]}  Nge5 {[%clk 0:02:16]} 16. Nxe5 {[%clk 0:02:26]}  dxe5 {[%clk 0:02:16]} 17. c5 {[%clk 0:02:22]}  a5 {[%clk 0:02:16]} 18. Qb2 {[%clk 0:02:14]}  h5 {[%clk 0:01:59]} 19. Nb5 {[%clk 0:02:02]}  h4 {[%clk 0:01:57]} 20. h3 {[%clk 0:02:00]}  axb4 {[%clk 0:01:57]} 21. axb4 {[%clk 0:01:59]}  Qg5 {[%clk 0:01:47]} 22. Ra1 {[%clk 0:01:43]}  Bd7 {[%clk 0:01:45]} 23. Bc4 {[%clk 0:01:23]}  Ne7 {[%clk 0:01:38]} 24. Qc1 {[%clk 0:01:16]}  Qf6 {[%clk 0:01:23]} 25. Nd6 {[%clk 0:01:13]}  Ng6 {[%clk 0:01:23]} 26. Qe3 {[%clk 0:00:51]}  Nf4 {[%clk 0:01:19]} 27. Nxb7 {[%clk 0:00:41]}  Qg6 {[%clk 0:01:06]} 28. Qf3 {[%clk 0:00:40]}  Rab8 {[%clk 0:01:03]} 29. Ra7 {[%clk 0:00:29]}  Bc6 {[%clk 0:01:03]} 30. Na5 {[%clk 0:00:28]}  Bxe4 {[%clk 0:01:02]} 31. Qg4 {[%clk 0:00:27]}  Qxg4 {[%clk 0:00:59]} 32. hxg4 {[%clk 0:00:28]}  Rxb4 {[%clk 0:00:51]} 33. f3 {[%clk 0:00:28]}  Bd5 {[%clk 0:00:30]} 34. Rc1 {[%clk 0:00:28]}  Rc8 {[%clk 0:00:26]} 35. Bf1 {[%clk 0:00:24]}  g5 {[%clk 0:00:14]} 36. c6 {[%clk 0:00:24]}  e4 {[%clk 0:00:09]} 37. fxe4 {[%clk 0:00:20]}  Bxe4 {[%clk 0:00:08]} 38. Ba6 {[%clk 0:00:21]}  Rb2 {[%clk 0:00:05]} 39. Bxc8 {[%clk 0:00:15]}  Rxg2+ {[%clk 0:00:05]} 40. Kf1 {[%clk 0:00:14]}  h3 {[%clk 0:00:03]} 41. Bxe6 {[%clk 0:00:11]}  h2 {[%clk 0:00:01]} 42. Ra8+ {[%clk 0:00:11]}  Kg7 {[%clk 0:00:02]} 43. Rg8+ {[%clk 0:00:11]}  Kxg8 {[%clk 0:00:02]} 44. Bxf7+ {[%clk 0:00:12]}  Kg7 {[%clk 0:00:02]} 45. Bd5 {[%clk 0:00:12]}  h1=Q# {[%clk 0:00:03]} 0-1


[Site "https://www.chess.com"]

[Event "Titled Tuesday Blitz May 17 Late 2022"]
[White "Norowitz, Yaacov"]
[Black "Indjic, Aleksandar"]
[WhiteFideId "2024799"]
[BlackFideId "911925"]
[WhiteElo "2412"]
[BlackElo "2616"]
[Result "1-0"]
[Round "05"]
[TimeControl "180+1"]
[Date "2022.05.17"]
[WhiteClock "0:01:06"]
[BlackClock "0:00:43"]

1. d4 {[%clk 0:02:59]}  Nf6 {[%clk 0:02:58]} 2. e3 {[%clk 0:02:56]}  d6 {[%clk 0:02:56]} 3. Nf3 {[%clk 0:02:56]}  Nbd7 {[%clk 0:02:50]} 4. Be2 {[%clk 0:02:43]}  e5 {[%clk 0:02:50]} 5. O-O {[%clk 0:02:43]}  g6 {[%clk 0:02:50]} 6. b3 {[%clk 0:02:43]}  e4 {[%clk 0:02:40]} 7. Nfd2 {[%clk 0:02:43]}  Qe7 {[%clk 0:02:40]} 8. c4 {[%clk 0:02:42]}  c6 {[%clk 0:02:39]} 9. Nc3 {[%clk 0:02:42]}  d5 {[%clk 0:02:35]} 10. cxd5 {[%clk 0:02:41]}  cxd5 {[%clk 0:02:35]} 11. Nb5 {[%clk 0:02:41]}  Nb8 {[%clk 0:02:30]} 12. Ba3 {[%clk 0:02:24]}  Qd8 {[%clk 0:02:25]} 13. Qc2 {[%clk 0:02:18]}  Nc6 {[%clk 0:02:24]} 14. Bxf8 {[%clk 0:02:18]}  Kxf8 {[%clk 0:02:23]} 15. Qc5+ {[%clk 0:02:15]}  Kg7 {[%clk 0:02:23]} 16. Rac1 {[%clk 0:02:11]}  Bd7 {[%clk 0:01:51]} 17. Nd6 {[%clk 0:02:08]}  Rb8 {[%clk 0:01:35]} 18. f3 {[%clk 0:02:03]}  exf3 {[%clk 0:01:34]} 19. Nxf3 {[%clk 0:01:58]}  b6 {[%clk 0:01:29]} 20. Qa3 {[%clk 0:01:56]}  a5 {[%clk 0:01:20]} 21. Ne5 {[%clk 0:01:55]}  Nb4 {[%clk 0:01:06]} 22. Ndxf7 {[%clk 0:01:54]}  Qe7 {[%clk 0:00:53]} 23. Nxh8 {[%clk 0:01:53]}  Rxh8 {[%clk 0:00:53]} 24. Rc7 {[%clk 0:01:52]}  Rd8 {[%clk 0:00:53]} 25. Bb5 {[%clk 0:01:45]}  Kg8 {[%clk 0:00:52]} 26. Qc1 {[%clk 0:01:23]}  Qe6 {[%clk 0:00:44]} 27. Bxd7 {[%clk 0:01:08]}  Nxd7 {[%clk 0:00:43]} 28. Rxd7 {[%clk 0:01:06]} 1-0


[Site "https://www.chess.com"]

[Event "Titled Tuesday Blitz May 17 Late 2022"]
[White "Ohanyan, Emin"]
[Black "Fedoseev, Vladimir"]
[WhiteFideId "13312022"]
[BlackFideId "24130737"]
[WhiteElo "1927"]
[BlackElo "2726"]
[Result "0-1"]
[Round "05"]
[TimeControl "180+1"]
[Date "2022.05.17"]
[WhiteClock "0:00:28"]
[BlackClock "0:01:24"]

1. e4 {[%clk 0:03:00]}  c6 {[%clk 0:02:59]} 2. d4 {[%clk 0:03:00]}  d5 {[%clk 0:03:00]} 3. Nc3 {[%clk 0:03:01]}  dxe4 {[%clk 0:03:00]} 4. Nxe4 {[%clk 0:03:02]}  Nd7 {[%clk 0:03:00]} 5. Ng5 {[%clk 0:02:45]}  g6 {[%clk 0:02:43]} 6. N1f3 {[%clk 0:02:39]}  Nh6 {[%clk 0:02:37]} 7. Bc4 {[%clk 0:02:29]}  Nb6 {[%clk 0:02:33]} 8. Bb3 {[%clk 0:02:27]}  Bg7 {[%clk 0:02:32]} 9. h4 {[%clk 0:02:26]}  Nd5 {[%clk 0:02:22]} 10. c4 {[%clk 0:02:15]}  Nf6 {[%clk 0:02:22]} 11. Be3 {[%clk 0:02:13]}  Nf5 {[%clk 0:02:20]} 12. Qe2 {[%clk 0:02:07]}  Nxe3 {[%clk 0:02:16]} 13. fxe3 {[%clk 0:02:03]}  h6 {[%clk 0:02:15]} 14. Nh3 {[%clk 0:02:03]}  Ne4 {[%clk 0:02:10]} 15. Rh2 {[%clk 0:01:36]}  Qa5+ {[%clk 0:02:08]} 16. Kd1 {[%clk 0:01:32]}  Bf5 {[%clk 0:02:03]} 17. Bc2 {[%clk 0:01:21]}  e5 {[%clk 0:01:57]} 18. g4 {[%clk 0:01:10]}  Ng3 {[%clk 0:01:49]} 19. Qg2 {[%clk 0:01:10]}  Bxc2+ {[%clk 0:01:46]} 20. Kxc2 {[%clk 0:01:10]}  Ne4 {[%clk 0:01:42]} 21. Nxe5 {[%clk 0:01:10]}  Nd6 {[%clk 0:01:43]} 22. c5 {[%clk 0:00:56]}  Bxe5 {[%clk 0:01:42]} 23. cxd6 {[%clk 0:00:56]}  Bxh2 {[%clk 0:01:35]} 24. Qxh2 {[%clk 0:00:46]}  O-O-O {[%clk 0:01:35]} 25. Rf1 {[%clk 0:00:43]}  Qxa2 {[%clk 0:01:35]} 26. Kc3 {[%clk 0:00:39]}  Rhe8 {[%clk 0:01:33]} 27. Qf4 {[%clk 0:00:38]}  Re6 {[%clk 0:01:31]} 28. Qxh6 {[%clk 0:00:37]}  Rexd6 {[%clk 0:01:27]} 29. Ng5 {[%clk 0:00:36]}  c5 {[%clk 0:01:26]} 30. d5 {[%clk 0:00:28]}  Rxd5 {[%clk 0:01:24]} 0-1


[Site "https://www.chess.com"]

[Event "Titled Tuesday Blitz May 17 Late 2022"]
[White "Riehle, Marco"]
[Black "Kamsky, Gata"]
[WhiteFideId "12904392"]
[BlackFideId "2000024"]
[WhiteElo "2462"]
[BlackElo "2645"]
[Result "1-0"]
[Round "05"]
[TimeControl "180+1"]
[Date "2022.05.17"]
[WhiteClock "0:02:20"]
[BlackClock "0:02:14"]

1. e4 {[%clk 0:02:58]}  c5 {[%clk 0:02:57]} 2. a3 {[%clk 0:02:58]}  b6 {[%clk 0:02:50]} 3. b4 {[%clk 0:02:53]}  Bb7 {[%clk 0:02:48]} 4. Nc3 {[%clk 0:02:53]}  Nc6 {[%clk 0:02:46]} 5. b5 {[%clk 0:02:53]}  Nd4 {[%clk 0:02:43]} 6. Nf3 {[%clk 0:02:53]}  e6 {[%clk 0:02:42]} 7. Bb2 {[%clk 0:02:47]}  Nf6 {[%clk 0:02:34]} 8. d3 {[%clk 0:02:47]}  d5 {[%clk 0:02:31]} 9. exd5 {[%clk 0:02:37]}  Nxd5 {[%clk 0:02:25]} 10. Nxd4 {[%clk 0:02:35]}  cxd4 {[%clk 0:02:23]} 11. Ne4 {[%clk 0:02:35]}  Nf6 {[%clk 0:02:19]} 12. Qf3 {[%clk 0:02:27]}  Be7 {[%clk 0:02:15]} 13. Nxf6+ {[%clk 0:02:26]}  Bxf6 {[%clk 0:02:15]} 14. Qxb7 {[%clk 0:02:26]}  O-O {[%clk 0:02:14]} 15. Be2 {[%clk 0:02:20]} 1-0


[Site "https://www.chess.com"]